Cogmind - Beta 9.4 *** ADVENTURER MODE // 2020.07.30 @ 18:04:10 Player: Scyralis Result: Self-destructed Performance ------------- Evolutions (1) 500 Regions Visited (2) 400 Robots Destroyed (10) 50 Value Destroyed (166) 166 Prototype IDs (0) 0 Alien Tech Used (0) 0 Bonus (0) 0 TOTAL SCORE: 1116 Bonus ------- None Cogmind --------- Core Integrity 400/400 Matter 179/300 Energy 171/250 System Corruption 0% Temperature Cool (9) Movement Hovering (56) Location -9/Materials Parts ------- > --- POWER (1) -------- Ion Engine > --- PROPULSION (2) --- Hover Unit Hover Unit > --- UTILITY (4) ------ Improved Terrain Scanner ECM Suite Propulsion Shielding Hacking Suite > --- WEAPON (2) ------- Datajack Mining Claw > --- INVENTORY (4) ---- (None) Peak State ------------ > --- POWER ------------ Ion Engine > --- PROPULSION ------- Hover Unit Hover Unit > --- UTILITY ---------- Improved Terrain Scanner ECM Suite Propulsion Shielding Hacking Suite > --- WEAPON ----------- Datajack Mining Claw > --- INVENTORY -------- (None) [Rating: 12] Favorites ----------- Power Ion Engine Engine Ion Engine Propulsion Hover Unit Wheel Compact Wheel Hover Unit Hover Unit Utility ECM Suite Device ECM Suite Processor Targeting Computer Hackware Hacking Suite Protection Propulsion Shielding Weapon Datajack Energy Gun EM Pulse Gun Ballistic Gun Light Assault Rifle Slashing Weapon Mining Claw Special Melee Weapon Datajack Build | -11 -10 -9 ------- Run | Scr Mat Mat Slots Evolved 2 | . . 2 Power . | . . . Propulsion . | . . . Utility 2 | . . 2 Weapon . | . . . Parts Attached 22 | 5 14 3 Power 2 | 1 1 . Engine 2 | 1 1 . Core . | . . . Reactor . | . . . Propulsion 7 | 2 4 1 Treads . | . . . Leg . | . . . Wheel 4 | 2 2 . Hover 3 | . 2 1 Flight . | . . . Utility 6 | . 4 2 Device 3 | . 2 1 Storage . | . . . Processor 1 | . 1 . Hackware 1 | . . 1 Protection 1 | . 1 . Artifact . | . . . Weapon 7 | 2 5 . Energy Gun 2 | . 2 . Energy Cannon . | . . . Ballistic Gun 2 | 2 . . Ballistic Cannon . | . . . Launcher . | . . . Special Weapon . | . . . Impact Weapon . | . . . Slashing Weapon 1 | . 1 . Piercing Weapon . | . . . Special Melee Weapon 2 | . 2 . Unidentified Prototypes . | . . . Parts Lost 3 | . 3 . Power . | . . . Propulsion . | . . . Utility . | . . . Weapon 3 | . 3 . Highest Loss Streak 2 | . 2 . Average Slot Usage (%) 81 | . 81 79 Engine 13 | . 13 11 Wheel 9 | . 11 . Hover 16 | . 15 19 Device 12 | . 11 15 Protection 11 | . 11 11 Energy Gun 4 | . 5 . Ballistic Gun 3 | . 4 . Slashing Weapon 2 | . . 11 Special Melee Weapon 7 | . 6 11 Naked Turns . | . . . Heaviest Build 11 | 5 10 11 Greatest Support 32 | 20 32 12 Greatest Overweight (x) . | . . . Average Overweight (x) . | . . . Largest Inventory Capacity 4 | 4 4 4 Average Capacity 4 | 4 4 4 Most Carried 4 | 4 3 1 Average Carried . | 1 1 . Final Capacity 4 | 4 4 4 Final Carried 1 | 1 . . Class Distribution -------------------- 100% | Mutant Dominant Class ---------------- Mutant | -10/Materials Mutant | -9/Materials Resources | -11 -10 -9 ----------- Run | Scr Mat Mat Matter Collected 309 | 178 111 20 Remotely . | . . . Salvage Created 463 | 111 332 20 Parts 23 | 5 17 1 Haulers Intercepted 1 | . 1 . Recyclers Shooed 1 | . 1 . Parts Field Recycled . | . . . Retrieved Matter . | . . . Parts Self-Destructed . | . . . Prevented . | . . . Kills | -11 -10 -9 ------- Run | Scr Mat Mat Combat Hostiles Destroyed 2 | . 2 . AOE 2 | . 2 . Classes Destroyed 6 | 2 3 1 Tunneler 1 | 1 . . Hauler 1 | . 1 . Recycler 2 | 1 1 . Operator 1 | . . 1 Watcher 3 | . 3 . Grunt 2 | . 2 . Best Kill Streak 2 | 2 2 1 Combat Bots Only 2 | . 2 . Max Kills in Single Turn 2 | 1 2 1 Gunslinging . | . . . Exploded 2 | . 2 . Melee . | . . . Uniques/NPCs Destroyed . | . . . Combat | -11 -10 -9 -------- Run | Scr Mat Mat Damage Taken 345 | . 269 76 Core 65 | . 65 . Absorbed by Shields . | . . . Core Remaining (%) 87 | 100 74 . Volleys Fired 33 | 11 22 . Largest 2 | 2 2 . Hottest 80 | 40 80 . Shots Fired 52 | 15 37 . Gun 52 | 15 37 . Cannon . | . . . Launcher . | . . . Special . | . . . Kinetic 25 | 15 10 . Thermal . | . . . Explosive . | . . . Electromagnetic 27 | . 27 . Robot Hit Streak 15 | 11 15 . Robot Miss Streak 4 | 1 4 . Penetration Max . | . . . Secondary Targets . | . . . Shots Hit Robots 47 | 14 31 2 Core Hits 15 | 4 10 1 Critical Hits . | . . . Critical Kills . | . . . Critical Parts Destroyed . | . . . Melee Attacks 6 | . 2 4 Impact . | . . . Slashing 5 | . 1 4 Piercing . | . . . Sneak Attacks 2 | . 1 1 Combat Hostiles . | . . . Follow-up Attacks . | . . . Damage Inflicted 633 | 112 411 110 Guns 523 | 112 411 . Cannons . | . . . Explosions . | . . . Melee 110 | . . 110 Ramming . | . . . Kinetic 175 | 112 63 . Thermal . | . . . Explosive . | . . . Electromagnetic 348 | . 348 . Impact . | . . . Slashing 110 | . . 110 Piercing . | . . . Highest Corruption . | . . . Average Corruption . | . . . Corruption Purged . | . . . Overload Shots . | . . . Overflow Damage 52 | . . 52 Projectiles . | . . . Explosions . | . . . Melee 52 | . . 52 Knockbacks . | . . . Impact . | . . . Kinetic . | . . . Secondary . | . . . Self-Inflicted Damage . | . . . Shots . | . . . Rammed . | . . . Targets Rammed . | . . . Kicked . | . . . Crushed . | . . . Highest Temperature 70 | . 70 . Average Temperature 30 | . 30 . Received Heat Transfer 210 | . 201 9 Siege Activations . | . . . Robots Corrupted . | . . . Combat Hostiles . | . . . Parts Fried 5 | . 5 . Impact Corruptions . | . . . Robots Melted . | . . . Combat Hostiles . | . . . Parts Melted . | . . . Heat Transferred . | . . . Parts Sabotaged . | . . . Parts Stolen . | . . . Parts Stripped . | . . . Power Chain Reactions . | . . . Missiles Intercepted . | . . . Alert | -11 -10 -9 ------- Run | Scr Mat Mat Peak Influence 83 | 10 83 40 Average Influence 27 | 2 32 11 Maximum Alert Level . | . . . Low Security (%) 100 | 100 100 100 Level 1 . | . . . Level 2 . | . . . Level 3 . | . . . Level 4 . | . . . Level 5 . | . . . High Security . | . . . Max Security . | . . . Squads Dispatched 3 | . 1 2 Investigation 1 | . 1 . Extermination . | . . . Reinforcement 2 | . . 2 Assault . | . . . Garrison . | . . . Intercept . | . . . Construction Impeded . | . . . Haulers Reinforced . | . . . Stealth | -11 -10 -9 --------- Run | Scr Mat Mat Distress Signals 2 | . 1 1 Communications Jammed . | . . . Distress Signals . | . . . Times Spotted 43 | . 32 11 Peak Tracking Total 8 | . 5 8 Tactical Retreats 12 | . 11 1 Traps | -11 -10 -9 ------- Run | Scr Mat Mat Traps Triggered 2 | . 2 . Indirectly . | . . . Trap Hack Attempts . | . . . Triggered . | . . . Disarmed . | . . . Reprogrammed . | . . . Reused . | . . . Traps Extracted . | . . . Installed . | . . . Triggered 1 | . 1 . Machines | -11 -10 -9 ---------- Run | Scr Mat Mat Machines Disabled . | . . . Max in Single Turn . | . . . Machines Sabotaged . | . . . Garrisons Compromised . | . . . Overloaded Fab Kills . | . . . Fab Network Shutdowns . | . . . Hacking | -11 -10 -9 --------- Run | Scr Mat Mat Machines Accessed 8 | . 6 2 Terminals 6 | . 5 1 Fabricators . | . . . Repair Stations 2 | . 1 1 Recycling Units . | . . . Scanalyzers . | . . . Garrison Access . | . . . Total Hacks 24 | . 17 7 Successful 13 | . 10 3 Failed 11 | . 7 4 Catastrophic 1 | . 1 . Database Lockouts . | . . . Manual 15 | . 10 5 Terminals 20 | . 15 5 Fabricators . | . . . Repair Stations 4 | . 2 2 Recycling Units . | . . . Scanalyzers . | . . . Garrison Access . | . . . Terminal Hacks 6 | . 6 . Robot Analysis 2 | . 2 . Terminal Index 1 | . 1 . Unreport Threat 1 | . 1 . Dispatch Records 1 | . 1 . Recall Investigation 1 | . 1 . Fabricator Hacks . | . . . Repair Station Hacks 4 | . 2 2 Scan Component 2 | . 1 1 Repair 2 | . 1 1 Recycling Unit Hacks . | . . . Scanalyzer . | . . . Garrison Access Hacks . | . . . Unauthorized Hacks 11 | . 6 5 Terminals 3 | . 2 1 Botnet 3 | . 2 1 Fabricators . | . . . Repair Stations . | . . . Recycling Units . | . . . Scanalyzers . | . . . Garrison Access . | . . . Data Cores Recovered . | . . . Used . | . . . Hacking Detections 6 | . 5 1 Full Trace Events 1 | . 1 . Feedback Events . | . . . Feedback Blocked . | . . . Robot Schematics Acquired . | . . . Robots Built . | . . . Matter . | . . . Time . | . . . Total Robot Build Rating . | . . . Part Schematics Acquired . | . . . Parts Built . | . . . Matter . | . . . Time . | . . . Total Part Build Rating . | . . . Parts Repaired 2 | . 1 1 Time 52 | . 26 26 Parts Recycled . | . . . Recycled Matter . | . . . Retrieved Matter . | . . . Retrieved Components . | . . . Parts Scanalyzed . | . . . Part Schematics Acquired . | . . . Parts Damaged . | . . . Bothacking | -11 -10 -9 ------------ Run | Scr Mat Mat Used RIF Installer . | . . . Robots Hacked . | . . . Non-combat . | . . . Combat . | . . . Robot Hacks Applied . | . . . Relay Couplers Released . | . . . Robots Rewired . | . . . Allies Hacked . | . . . Hacks Repelled . | . . . Allies | -11 -10 -9 -------- Run | Scr Mat Mat Total Allies . | . . . Largest Group . | . . . Highest-Rated Group . | . . . Highest-Rated Ally . | . . . Total Orders . | . . . Ally Attacks . | . . . Total Damage . | . . . Kills . | . . . Allies Corrupted . | . . . Allies Melted . | . . . Intel | -11 -10 -9 ------- Run | Scr Mat Mat Robot Analysis Total 2 | . 2 . Derelict Logs Recovered . | . . . Drone Launches . | . . . Drone Recoveries . | . . . Exploration | -11 -10 -9 ------------- Run | Scr Mat Mat Turns Passed 773 | 61 605 107 Spaces Moved 724 | 42 600 82 Core 20 | 20 . . Treads . | . . . Legs . | . . . Wheels 198 | 22 176 . Hover 506 | . 424 82 Flight . | . . . Fastest Speed 50 | 50 56 56 Average Speed 67 | 65 68 56 Slowest Speed 100 | 80 100 56 Overloaded Moves . | . . . Propulsion Burnouts . | . . . Robots Hopped . | . . . Cave-ins Triggered . | . . . Exploration Rate (%) 35 | 4 92 10 Regions Visited 2 Branch Regions . Pre-discovered Areas . | . . . Known Exits Taken . | . . . Unknown Exits Taken 2 | 1 1 . Scrap Searched . | . . . Spaces Dug . | . . . Terrain Destroyed . | . . . Melee . | . . . Projectile . | . . . AOE . | . . . Actions | -11 -10 -9 --------- Run | Scr Mat Mat Total 957 | 63 759 135 Wait 140 | . 97 43 Move 722 | 41 599 82 Hop . | . . . Pick Up 24 | 6 15 3 Fast Attach . | . . . Attach 22 | 5 14 3 Detach . | . . . Swap . | . . . Drop 10 | . 10 . Fire 33 | 11 22 . Melee 6 | . 2 4 Ram . | . . . Kick . | . . . Crush . | . . . Escape Stasis . | . . . Rewire . | . . . Trap . | . . . Miscellaneous . | . . . Route ------- -11/Scrapyard -10/Materials (discovered 4 exits: *Mat x3 / [*Min]) -9/Materials History --------- Turn | Location | Event 2 | -11/Scrapyard | Met Revision 17 21 | -11/Scrapyard | Discovered new exit (range 15) 62 | -11/Scrapyard | Entered Materials 167 | -10/Materials | Discovered new exit (range 14) 333 | -10/Materials | Build established: Mutant 345 | -10/Materials | Discovered new exit (range 16) 439 | -10/Materials | Discovered new exit (range 6) 489 | -10/Materials | Discovered new exit (range 14) 527 | -10/Materials | Repaired ECM Suite 667 | -10/Materials | Entered another Materials area 667 | -9/Materials | Evolved 2 slots: Utility x2 700 | -9/Materials | Repaired Hover Unit 774 | -9/Materials | Self-destructed Last Messages --------------- 00751_ Connecting with Terminal... >>Trojan(Botnet) Trojan loaded successfully. Testing... Terminal linked with 0 systems. Awaiting botnet instructions. 00752_ O-16 Technician: "IFF HANDSHAKE FAILED. SECURING TERMINAL." 00755_ Sneak attack on O-16 Technician. 00755_ Destroyed Hover Unit. 00755_ Destroyed Lgt. Ion Engine. 00756_ O-16 Technician uses terminal to summon reinforcements. 00756_ ALERT: Hostiles spotted, dispatching reinforcements to Terminal M009. 00756_ O-16 Technician locks terminal. 00756_ O-16 Technician cleans trojans from system. 00756_ ALERT: Hostiles spotted, dispatching reinforcements to Terminal M008. 00758_ O-16 Technician destroyed. 00761_ Acquired 20 matter. 00762_ Acquired Hacking Suite. 00766_ C-30 ARC bursts open, deploying its payload. 00766_ S-10 Pest unfolds itself. Map ----- +----------------------------------------------------+ | ??????????????????????????????????? | | ??????????????????????????????????? | | ??????????????????????????????????? | | ??????????????????????????????????? | | ??????????????????????????????????? | | ??????????????????????????????????? | | ??????????????????????????????????? | | ?? ???????????????????????????? | | ?? ???????????????????????????? | | ?? ???????????????????????????? | | ?? ???????????????????????????? | | ?? ???????????????????????????? | | ??# #???????????????????????????? | | ??# #???????????????????????????? | | ??# +????????"??????????????????? | | ??# #???????????????????????????? | | ??# #???????????????????????????? | | ??# #??????? ???????????????????? | | ?## #???????#???????????????????? | | ??# #???????????????????????????? | | ??# #???????????????????????????? | | ??# #??????#??? ????????????????? | | ####/###########??????????????????? | | # +%ss +??????????????????? | | # #s ####??????????????????? | | # ""T"" #@ #??? ??? ?????????????? | | # """"" sg #?????????????????????? | | # ## #?????????????????????? | | ########### #?????????????????????? | | ?? #g#?????????????????????? | | ?# """ # #?????????????????????? | | ?# """ # ###???????????????????? | | ?# """ # #???????????????????? | | ?# + ##??###?????????????? | | ?# """ # #?? #? ???????????? | | ?# """ # #?? #?????????????? | | ?# """ # #? #?????????????? | | ?# # #? #?????????????? | | ???######## # #?????????????? | | ???# ?# # #?????????????? | | ???# """ + / #?????????????? | | ???# """ # # #?????????????? | | ???# """ + # #?????????????? | | ???# """ # #? #?????????????? | | ???# # #? #?????????????? | | ???######?# #?? #?????????????? | | ??????????# #??####?????????????? | | ??????????# #???????????????????? | | ??????????# #???????????????????? | | ?########## #???????????????????? | +----------------------------------------------------+ Best States ------------- Heat Dissipation 28 Energy Generation 10 Energy Capacity 250 Matter Stores 264 Matter Capacity 300 Sight Range 16 Terrain Scan Range 16 Terrain Scan Density 10 ECM Strength 1 Resistance: KI 20 Resistance: TH 20 Resistance: EX 20 Resistance: EM 20 Resistance: I 20 Resistance: S 20 Resistance: P 20 Propulsion Shielding 33 Evasion (%) 53 Offensive Hacking 20 Item Schematics ----------------- None Robot Schematics ------------------ None Fabricated ------------ Nothing Alien Tech Used ----------------- None Achievements -------------- None Challenges ------------ None Game ------ Seed HoverStoragePod Manual? 0 Play Time 00:08:33 Cumulative 154.4 hours Start 2020.07.30 @ 17:56:39 End 2020.07.30 @ 18:04:10 Sessions 1 Manual Loads 0 Difficulty Adventurer Special Mode None Game No. 69 Rogue 0 Adventurer 69 Explorer 0 Win Type - Total 1 Types 1/0/0/0/0/0/0 Lore% 29 Gallery% 52 Achievement% 38 Wizard Run 0 Options --------- ASCII 0 Keyboard 0 Movement Numpad Keybinds 0 Fullscreen 0 Font 12/Smallcaps Map View 83x54 Tactical HUD 1 Map Filters NONE Filters NONE Steam X RUN: e543c205-26dc-45d0-8558-afae39292f36